{"text_format":"1","workbook":"xlsx","n_sheets":9,"sheets":["Notice","Formulaire demande d'accès ZRR ","Import","Liste disciplines scientifiques","Objectifs d'étude","Listes (2)","Import MENESR","Listes","Feuil2"],"not_rendered":{"charts":0,"images":2,"macros":1,"external_links":0,"defined_names":70,"comments":0,"pivot_tables":0},"unopened":[],"bounds":{"document_bytes":16777216,"sheet_cells":100000,"rows_first":2000,"rows_last":500,"rows_between":2000,"halvings":0,"cell_chars":16384,"cell_head_chars":4096},"cells_cut":0,"cells_raw":0,"read":"whole","date_system":"1900"}

{"sheet":"Notice","index":0,"n_rows":64,"n_cols":5,"rows_kept":64,"cut":false,"hidden":false,"merged":[[3,1,3,5],[5,1,5,5],[17,4,17,5],[18,4,18,5],[12,4,12,5],[13,4,13,5],[14,4,14,5],[58,4,58,5],[59,4,59,5],[60,4,60,5],[61,4,61,5],[62,4,62,5],[63,4,63,5],[51,0,51,5],[10,4,10,5],[49,4,49,5],[50,4,50,5],[52,4,52,5],[53,4,53,5],[54,4,54,5],[55,4,55,5],[56,4,56,5],[57,4,57,5],[40,4,40,5],[41,4,41,5],[42,4,42,5],[43,0,43,5],[44,4,44,5],[45,4,45,5],[46,4,46,5],[47,4,47,5],[48,4,48,5],[9,0,9,5],[11,0,11,5],[33,4,33,5],[34,4,34,5],[35,4,35,5],[36,4,36,5],[37,4,37,5],[38,4,38,5],[39,4,39,5],[19,4,19,5],[15,4,15,5],[16,4,16,5],[20,4,20,5],[21,4,21,5],[22,4,22,5],[23,4,23,5],[29,4,29,5],[30,4,30,5],[31,4,31,5],[32,0,32,5],[24,4,24,5],[25,4,25,5],[26,4,26,5],[27,4,27,5],[28,4,28,5]]}
[null,null,"Notice explicative"]
[]
["Pourquoi remplir ce formulaire ?"]
[null,"Toute demande d'accès à une ZRR doit être autorisée par le responsable de la ZRR. \nDans les cas prévus par l'article R. 413-5-1 du code pénal (stage, doctorat, activités scientifiques, etc.), cette autorisation ne peut intervenir qu'après avis favorable du ministre. \nCe formulaire a pour objet de recueillir les informations nécessaires à l'instruction du dossier par les services ministériels compétents.\nUne fois complet (champs obligatoires nécessaires dûment renseignés et pièces à joindre), le dossier est enregistré par l'accueillant qui le transmet dans les meilleurs délais au service ministériel concerné pour instruction. Le délai des deux mois prévu par le décret n° 2011-1425 du 2 novembre 2011 se déclenche le moment où le service ministériel concerné accuse réception du dossier complet transmis par l'accueillant. Le décret précise que le silence de l'administration dans les deux mois qui suivent la réception du dossier par le service ministériel concerné vaut avis favorable du ministre."]
["Renseignements attendus"]
[null,"Pour faciliter les opérations de saisie, un certain nombre de champs disposent d'un menu déroulant. Il est possible de fournir des informations  non listées en utilisant les rubriques \"autre\" prévues à cet effet.\nL'onglet \"Demande\" regroupe les informations nécessaires pour une instruction élémentaire du dossier.\nL'onglet \"Complément\" permet de fournir des informations complémentaires qui permettent de faciliter l'analyse du dossier.\nAfin de faciliter une instruction objective du dossier, il est conseillé de veiller à la précision et à l'exhaustivité des informations transmises, en utilisant au mieux les deux onglets disponibles."]
[]
[]
["Référence","Libellé","Obligatoire oui / non","Type de champ Formaté / Libre","Explications"]
["EN-TETE FORMULAIRE"]
[null,"Numéro de dossier","oui","libre","année-mois-codeZRR-n° de demande dans le mois pour la ZRR"]
["INFORMATIONS PERSONNELLES"]
["A1A","Nom","oui","formaté"]
["A1B","Prénom","oui","libre"]
["A1C","Nom marital","non","libre"]
["A1D","Sexe","oui","libre"]
["A2A","Type de pièce d'identité","oui","libre"]
["A2B","Numéro de pièce d'identité","oui","libre"]
["A2C","Date de naissance","oui","formaté","Format JJ/MM/AAAA"]
["A2D","Code postal et ville de naissance","oui","libre"]
["A2E","Pays de naissance","oui","formaté","Liste déroulante"]
["A2F","Nationalité","oui","formaté","Liste déroulante"]
["A2G","Autre nationalité","oui","formaté","Liste déroulante"]
["A3","Adresse E-Mail","oui","libre"]
["A4A","Adresse princiaple actuelle","oui","libre"]
["A4B","Code postal et ville","oui","libre"]
["A4C","Pays","oui","formaté","Liste déroulante"]
["A5A","Situation professionnelle actuelle","oui","libre"]
["A5B","Organisme employeur actuel","oui","libre"]
["A5C","Adresse de l'organisme employeur","oui","libre","Si pas d'employeur indiquer \"pas d'employeur\""]
["A5D","Code postal et ville ","oui","libre"]
["A5E","Pays","oui","formaté","Liste déroulante"]
["ACTIVITES AU SEIN DE LA ZRR\n(A remplir par l'établissement)"]
["C1A","Statut de la mission au sein de la ZRR","oui","libre"]
["C1B","Origine du financement de la mission ","oui","libre","Si pas de financement indiquer \"sans objet\""]
["C1C","Montant du financement en euros","oui","libre","Si pas de financement indiquer \"sans objet\". Si un finacement est indiqué saisir le montant."]
["C2A","Type d'accès","oui","libre"]
["C2B","Date de début de la mission dans la ZRR","oui","formaté","Format JJ/MM/AAAA"]
["C2C","Date de fin de la mission  dans la ZRR","oui","formaté","Format JJ/MM/AAAA"]
["C3A","Domaine Scientifique principal","oui","formaté","Liste déroulante"]
["C3B","Discipline scientifique principale ","oui","formaté","Liste déroulante"]
["C4A","Sujet de recherche","oui","libre"]
["C4B"," Résumé de la mission et de l'activité (sujet, thème) prévue au sein de la ZRR","oui","libre"]
["INFORMATIONS COMPLEMENTAIRES"]
["E1A","Indiquez et précisez si vous avez fait une autre demande d'accès simultanément à celle-ci ","oui","libre"]
["E1B","Avez-vous déjà reçu une autorisation d'accès à une ZRR ?","oui","libre"]
["E1C","Si oui, indiquer la ZRR concernée","non","libre"]
["E1D","Si oui, indiquer la référence de l'habilitation","non","libre"]
["E2A","Êtes-vous habilité au titre de la protection du secret de la défense nationale ?","oui","libre"]
["E2B","Si oui, indiquer le niveau d'habilitation ","non","libre"]
["E2C","Si oui, indiquer l'autorité d'habilitation","non","libre"]
["CADRE RESERVE A L'ETABLISSEMENT D'ACCEUIL"]
[null,"Nom de l'établissement hébergeur de la ZRR","oui","libre","Il s'agit du nom du service, de l'établissement ou de l'entreprise hébergeant la ZRR."]
[null," Code de l'unité","oui","libre","Il s’agit d’un code attribué par le SGDSN permettant d’identifier de manière unique l'unité au sein du répertoire national. \n"]
[null,"Code de la ZRR","oui","libre","Il s’agit d’un code attribué par le SGDSN permettant d’identifier de manière unique la ZRR au sein du répertoire national. "]
[null,"Adresse de la ZRR","oui","libre"]
[null,"Ministère de rattachement","oui","libre"]
[null,"Nom et fonction du responsable de la ZRR ","oui","libre"]
[null,"Téléphone","oui","libre"]
[null,"E-mail ","oui","libre"]
[null,"Avis motivé du responsable de la ZRR","oui","libre"]
[null,"Avis du chef d'établissement ou délégué à la sécurité (FSD, officier de sécurité, etc.) ","oui","libre"]
[null,"Avis du ministère de la tutelle","non","libre"]
[null,"Commentaires, précisions sur poste/stage du demandeur","non","libre"]

{"sheet":"Formulaire demande d'accès ZRR ","index":1,"n_rows":51,"n_cols":17,"rows_kept":51,"cut":false,"hidden":false,"merged":[[3,10,3,14],[20,10,20,11],[8,12,8,13],[10,10,10,11],[10,12,10,13],[18,12,19,13],[12,12,12,13],[16,12,16,13],[18,10,19,11],[20,12,20,13],[5,10,6,11],[14,12,14,13],[14,10,14,11],[16,10,17,11],[8,10,9,11],[12,10,12,11],[51,10,51,14],[51,1,51,9],[46,1,46,2],[48,1,48,8],[46,7,46,8],[46,12,50,13],[46,10,50,11],[50,1,50,8],[41,4,44,4],[30,3,31,8],[30,1,31,2],[24,12,29,13],[24,10,29,11],[22,6,24,7],[26,3,26,4],[26,6,26,7],[21,10,22,11],[22,8,24,8],[23,12,23,13],[21,12,22,13],[31,12,33,13],[31,10,33,11],[23,10,23,11],[35,10,45,11],[35,12,43,13],[0,1,1,11],[0,12,0,14],[1,12,1,13],[37,1,39,9],[3,1,3,9],[4,8,4,9],[41,6,43,6],[41,8,43,8],[8,5,9,5],[40,3,45,3],[40,5,45,5],[40,7,45,7],[41,2,43,2],[5,12,6,13],[40,1,45,1],[33,2,35,8],[33,1,35,1],[18,1,20,9],[8,7,9,7],[12,5,13,5],[16,1,16,2],[28,1,28,2],[28,3,28,4],[28,5,28,6],[28,7,28,8],[22,3,24,4],[22,5,24,5],[22,2,24,2],[22,1,24,1],[16,3,16,4],[5,2,6,2],[5,4,6,4],[5,6,6,6],[5,8,6,8],[14,7,14,8],[14,5,14,6],[14,3,14,4],[12,3,12,4],[14,1,14,2],[12,1,12,2]]}
[null,"\nFormulaire de demande d'accès à une zone à régime restrictif (ZRR)\n(Application form for a ZRR access demand)\nDécret n° 2011-1425 du 2 novembre 2011 portant application de l'article 413-7 du code pénal et relatif à la protection du potentiel scientifique et technique de la nation",null,null,null,null,null,null,null,null,null,null,"Numéro de dossier\n(année-mois-codeZRR-n° de demande dans le mois pour la ZRR) *",null,null,null," "]
[]
[]
[null,"1. Informations personnelles\n(personal information)",null,null,null,null,null,null,null,null,"4. Cadre réservé à l'établissement d'accueil \n(Please do NOT fill in this part - reserved to the administration)"]
[]
[null,"A1A Nom (last name)*",null,"A1B Prénom(s) (first name)*",null,"A1C Nom marital (married name)",null,"A1D Sexe (gender)*",null,null,"Nom de l'établissement hébergeur de la ZRR *",null,"Université de Toulouse"]
[]
[]
[null,"A2A Type de pièce d'identité (type of ID)*",null,"A2B Numéro de pièce d'identité (ID number)*",null,"A2C Date de naissance (birthdate) (JJ/MM/AAAA)*",null,"A2D Code postal et ville de naissance\n     (zip code and birthplace)*",null,null," Code de l'unité de recherche ou équipe de recherche ex: UMR XXXX, EA XXXX*",null,"UMR5277"]
[]
[null,"A2E Pays de naissance      \n    (country of birth)*",null,"A2F Nationalité (pays) (nationality) *",null,"A2G Autre nationalité (pays) \n(other nationality)*",null,"A3 Adresse E-mail \n(e-mail)*",null,null," Code de la ZRR*",null,"31F321ZRR1"]
[]
[null,"A4A Adresse principale actuelle (current main address)*",null,null,null,"A4B Code postal et ville\n( zip code and city)*",null,"A4C Pays (country)*",null,null,"Adresse de la ZRR ",null,"IRAP - 9 Avanue du Colonel Roche 31400 Toulouse"]
[]
[null,"A5A Situation professionnelle actuelle (current professional situation)*",null,null,null,"A5B Organisme employeur actuel \n(name of the current employing organization)* ",null,null,null,null,"Ministère de rattachement*",null,"F - Ministère de l'enseignement supérieur de la recherche et l'innovation"]
[]
[null,"A5C Adresse de l'organisme employeur \n(address of employing organization)*",null,null,null,"A5D Code postal et ville \n(zip code and city)*",null,"A5E Pays (country)*",null,null,"Nom et fonction du responsable de la ZRR *",null,"Sylvestre MAURICE  Directeur"]
[]
[null,"2. Activités au sein de la ZRR (activities that will be pursued in the ZRR)\nA renseigner par l'établissement",null,null,null,null,null,null,null,null,"Téléphone*",null,"05.61.55.66.66"]
[]
[]
[null,null,null,null,null,null,null,null,null,null,"E-mail *\n",null,"direction@irap.omp.eu"]
[null,"C1A Statut au sein de la ZRR (statut within the ZRR) * *",null,"C1B Origine du financement de la mission (origine of the funding of the mission)*",null,null,"C1C Montant du financement en euros (amount of the funding in euros)"]
[]
[null,null,null,null,null,null,null,null,null,null,"Avis motivé du responsable de la ZRR ",null,"FAVORABLE"]
[]
[null,"C2A Type d'accès (type of access)**",null,"C2B Date de début de la mission dans la ZRR  \n(start date of the mission in the ZRR)(JJ/MM/AAAA)*",null,null,"C2C Date de fin de la mission  dans la ZRR  (end date of the mission in the ZRR)(JJ/MM/AAAA)*"]
[]
[null,"C3A Domaine scientifique principal (main scientific field)**",null,"Sciences_de_la_terre_et_de_l_univers_espace",null,"C3B Discipline scientifique principale (main scientifique discipline)**",null,"Astronomie, astrophysique "]
[]
[null,"C4A Sujet de recherche/activité (research subject / activity)* * "]
[null,null,null,null,null,null,null,null,null,null,"Avis du chef d'établissement ou délégué à la sécurité (FSD, officier de sécurité, etc.)"]
[]
[null,"C4B Résumé de la mission et de l'activité (sujet, thème) prévue au sein de la ZRR  \n(short description of  your future position in the ZRR and the activities/research that you will carry out)* "]
[]
[null,null,null,null,null,null,null,null,null,null,"Avis du ministère de tutelle"]
[]
[null,"3. Informations complémentaires\n(additional information)"]
[]
[]
[null,"E1A Indiquez et précisez si vous avez fait une autre demande d'accès simultanément à celle-ci (indicate and precise if you submited another access authorization simultaneously)*",null,"E1B Avez-vous déjà reçu une autorisation d'accès à une ZRR ? (have you already received a ZRR access authorization ?)*  ",null,"E1C Si oui, indiquer la ZRR concernée\n(if so, indicate the ZRR concerned)",null,"E1D Si oui, indiquer la référence de l'habilitation\n(if so, indicate the reference of the authorization)"]
[]
[]
[]
[]
[]
[null,"E2A Êtes-vous habilité au titre de la protection du secret de la défense nationale ? \n(do you have an accreditation for French national defence information ?)*",null,null," E2B Si oui, indiquer le niveau d'habilitation \n(if so, indicate the accreditation level)",null," E2C Si oui, indiquer l'autorité d'habilitation \n(if so, indicate the enabling authority)",null,null,null,"Commentaires, précisions sur poste/stage du demandeur",null,"Accès ponctuel sur sites Belin-Tarbes"]
[]
[null,"IMPORTANT \nJoindre à ce formulaire un descriptif complet et détaillé du sujet de la mission, une copie de la pièce d'identité (carte nationale d'identité ou passeport), un CV numérique complet sans rupture de date faisant apparaître les diplômes, titres, travaux et l'expérience professionnelle, ainsi que les documents relatifs au financement. Uniquement en format .pdf. (Please attach a full and detailled description of the subject of the mission, a copy of the ID or passeport,  a full resume including degrees, certificates, accreditations and work experience, as well as any document relating the the financing. Only .pdf).*"]
[null,"* = champ obligatoire / required field    ** = champ obligatoire, rédigé en français / required field, written in french"]
[null,"Les données collectées dans le formulaire font l'objet d'un traitement de données à caractère personnel, conformément aux articles 39 et 40 de la Loi n°78-17 du 6 janvier 1978 modifiée relative à l'informatique, aux fichiers et aux libertés. \n(The data collected by this information sheet are subject for processing personal data, in accordance with articles 39 and 40 instituted by amended act n°78-17 of 6th january 1978 concerning data processing, files and freedoms)."]

{"sheet":"Import","index":2,"n_rows":2,"n_cols":97,"rows_kept":2,"cut":false,"hidden":true,"merged":[]}
["A00","A01","A02","A03","A04","A05","A06","A07","A08","A09","A10","A11","A12","A13","A13A","A13B","A14","A14A","A14B","A14C","A15","A15A","B01","B01A","B02","B02A","B03","B04","B05","B06","B07","B07A","B07B","B07C","C01","C02","C03","C04","C05","C06","C07","C08","C08A","C08B","C08C","C08D","C08E","C09","C09A","C09B","C09C","C09D","C09E","C10","C11","D01","D02","D02A","D03","D04","D05","E01","E01A","E01B","E02","E03","E03A","E04","E05","E05A","F01","F01A","F02","F03","F03A","F04","F04A","F04B","F04C","F05","F05A","F05B","G01","G02","G03","H01","H01A","H01B","H01C","H01D","H01E","H01F","H02","H02A","H02B","H02C","I01"]
[{"$f":"#REF!","v":{"$error":"#REF!"}},{"$f":"'Formulaire demande d''accès ZRR '!#REF!","v":{"$error":"#REF!"}},{"$f":"'Formulaire demande d''accès ZRR '!$C$6","v":0},{"$f":"'Formulaire demande d''accès ZRR '!#REF!","v":{"$error":"#REF!"}},{"$f":"'Formulaire demande d''accès ZRR '!#REF!","v":{"$error":"#REF!"}},{"$f":"'Formulaire demande d''accès ZRR '!#REF!","v":{"$error":"#REF!"}},{"$f":"'Formulaire demande d''accès ZRR '!$G$9","v":"00:00:00"},{"$f":"'Formulaire demande d''accès ZRR '!#REF!","v":{"$error":"#REF!"}},{"$f":"'Formulaire demande d''accès ZRR '!$H$9","v":"A2D Code postal et ville de naissance\n     (zip code and birthplace)*"},{"$f":"'Formulaire demande d''accès ZRR '!$D$11","v":"A2F Nationalité (pays) (nationality) *"},{"$f":"'Formulaire demande d''accès ZRR '!$C$9","v":0},{"$f":"'Formulaire demande d''accès ZRR '!$G$11","v":0},{"$f":"'Formulaire demande d''accès ZRR '!#REF!","v":{"$error":"#REF!"}},{"$f":"'Formulaire demande d''accès ZRR '!#REF!","v":{"$error":"#REF!"}},{"$f":"'Formulaire demande d''accès ZRR '!#REF!","v":{"$error":"#REF!"}},{"$f":"'Formulaire demande d''accès ZRR '!#REF!","v":{"$error":"#REF!"}},{"$f":"'Formulaire demande d''accès ZRR '!#REF!","v":{"$error":"#REF!"}},{"$f":"'Formulaire demande d''accès ZRR '!$B$17","v":"A5C Adresse de l'organisme employeur \n(address of employing organization)*"},{"$f":"'Formulaire demande d''accès ZRR '!$G$17","v":0},{"$f":"'Formulaire demande d''accès ZRR '!$I$17","v":0},{"$f":"'Formulaire demande d''accès ZRR '!#REF!","v":{"$error":"#REF!"}},{"$f":"'Formulaire demande d''accès ZRR '!#REF!","v":{"$error":"#REF!"}},{"$f":"#REF!","v":{"$error":"#REF!"}},{"$f":"#REF!","v":{"$error":"#REF!"}},{"$f":"#REF!","v":{"$error":"#REF!"}},{"$f":"#REF!","v":{"$error":"#REF!"}},{"$f":"#REF!","v":{"$error":"#REF!"}},{"$f":"#REF!","v":{"$error":"#REF!"}},{"$f":"#REF!","v":{"$error":"#REF!"}},{"$f":"#REF!","v":{"$error":"#REF!"}},{"$f":"'Formulaire demande d''accès ZRR '!#REF!","v":{"$error":"#REF!"}},{"$f":"'Formulaire demande d''accès ZRR '!#REF!","v":{"$error":"#REF!"}},{"$f":"'Formulaire demande d''accès ZRR '!#REF!","v":{"$error":"#REF!"}},{"$f":"'Formulaire demande d''accès ZRR '!#REF!","v":{"$error":"#REF!"}},{"$f":"#REF!","v":{"$error":"#REF!"}},{"$f":"#REF!","v":{"$error":"#REF!"}},{"$f":"#REF!","v":{"$error":"#REF!"}},{"$f":"'Formulaire demande d''accès ZRR '!#REF!","v":{"$error":"#REF!"}},{"$f":"'Formulaire demande d''accès ZRR '!#REF!","v":{"$error":"#REF!"}},{"$f":"'Formulaire demande d''accès ZRR '!#REF!","v":{"$error":"#REF!"}},{"$f":"'Formulaire demande d''accès ZRR '!#REF!","v":{"$error":"#REF!"}},{"$f":"#REF!","v":{"$error":"#REF!"}},{"$f":"#REF!","v":{"$error":"#REF!"}},{"$f":"'Formulaire demande d''accès ZRR '!#REF!","v":{"$error":"#REF!"}},{"$f":"'Formulaire demande d''accès ZRR '!#REF!","v":{"$error":"#REF!"}},{"$f":"'Formulaire demande d''accès ZRR '!#REF!","v":{"$error":"#REF!"}},{"$f":"'Formulaire demande d''accès ZRR '!#REF!","v":{"$error":"#REF!"}},{"$f":"#REF!","v":{"$error":"#REF!"}},{"$f":"#REF!","v":{"$error":"#REF!"}},{"$f":"'Formulaire demande d''accès ZRR '!#REF!","v":{"$error":"#REF!"}},{"$f":"'Formulaire demande d''accès ZRR '!#REF!","v":{"$error":"#REF!"}},{"$f":"'Formulaire demande d''accès ZRR '!#REF!","v":{"$error":"#REF!"}},{"$f":"'Formulaire demande d''accès ZRR '!#REF!","v":{"$error":"#REF!"}},{"$f":"'Formulaire demande d''accès ZRR '!#REF!","v":{"$error":"#REF!"}},{"$f":"'Formulaire demande d''accès ZRR '!#REF!","v":{"$error":"#REF!"}},{"$f":"'Formulaire demande d''accès ZRR '!#REF!","v":{"$error":"#REF!"}},{"$f":"'Formulaire demande d''accès ZRR '!#REF!","v":{"$error":"#REF!"}},{"$f":"'Formulaire demande d''accès ZRR '!#REF!","v":{"$error":"#REF!"}},{"$f":"'Formulaire demande d''accès ZRR '!#REF!","v":{"$error":"#REF!"}},{"$f":"'Formulaire demande d''accès ZRR '!#REF!","v":{"$error":"#REF!"}},{"$f":"'Formulaire demande d''accès ZRR '!#REF!","v":{"$error":"#REF!"}},{"$f":"#REF!","v":{"$error":"#REF!"}},{"$f":"#REF!","v":{"$error":"#REF!"}},{"$f":"#REF!","v":{"$error":"#REF!"}},{"$f":"#REF!","v":{"$error":"#REF!"}},{"$f":"#REF!","v":{"$error":"#REF!"}},{"$f":"#REF!","v":{"$error":"#REF!"}},{"$f":"#REF!","v":{"$error":"#REF!"}},{"$f":"#REF!","v":{"$error":"#REF!"}},{"$f":"#REF!","v":{"$error":"#REF!"}},{"$f":"#REF!","v":{"$error":"#REF!"}},{"$f":"#REF!","v":{"$error":"#REF!"}},{"$f":"#REF!","v":{"$error":"#REF!"}},{"$f":"#REF!","v":{"$error":"#REF!"}},{"$f":"#REF!","v":{"$error":"#REF!"}},{"$f":"#REF!","v":{"$error":"#REF!"}},{"$f":"#REF!","v":{"$error":"#REF!"}},{"$f":"#REF!","v":{"$error":"#REF!"}},{"$f":"#REF!","v":{"$error":"#REF!"}},{"$f":"#REF!","v":{"$error":"#REF!"}},{"$f":"#REF!","v":{"$error":"#REF!"}},{"$f":"#REF!","v":{"$error":"#REF!"}},{"$f":"#REF!","v":{"$error":"#REF!"}},{"$f":"#REF!","v":{"$error":"#REF!"}},{"$f":"#REF!","v":{"$error":"#REF!"}},{"$f":"#REF!","v":{"$error":"#REF!"}},{"$f":"#REF!","v":{"$error":"#REF!"}},{"$f":"#REF!","v":{"$error":"#REF!"}},{"$f":"#REF!","v":{"$error":"#REF!"}},{"$f":"#REF!","v":{"$error":"#REF!"}},{"$f":"#REF!","v":{"$error":"#REF!"}},{"$f":"#REF!","v":{"$error":"#REF!"}},{"$f":"#REF!","v":{"$error":"#REF!"}},{"$f":"#REF!","v":{"$error":"#REF!"}},{"$f":"#REF!","v":{"$error":"#REF!"}},{"$f":"#REF!","v":{"$error":"#REF!"}},{"$f":"#REF!","v":{"$error":"#REF!"}}]

{"sheet":"Liste disciplines scientifiques","index":3,"n_rows":86,"n_cols":3,"rows_kept":86,"cut":false,"hidden":true,"merged":[[1,0,1,2],[0,1,0,2],[77,1,77,2]]}
[null,"Liste des domaines et des disciplines scientifiques"]
[]
["Codes PPST","Domaines scientifiques","Disciplines scientifiques"]
[10,"Biologie, médecine et santé"]
[11,null,"Aspects moléculaires et cellulaires de la biologie"]
[12,null,"Biomolécules, pharmacologie, thérapeutique "]
[13,null,"Physiologie, Biologie des organismes, populations, interactions "]
[14,null,"Recherche clinique, innovation technologique, santé publique "]
[15,null,"Sciences de la vie et de la santé"]
[20,"Chimie"]
[21,null,"Chimie des matériaux "]
[22,null,"Chimie organique, minérale, industrielle "]
[23,null,"Chimie théorique, physique, analytique "]
[24,null,"Génie des matériaux "]
[30,"Mathématiques et leurs interactions"]
[31,null,"Mathématiques et leurs interactions "]
[40,"Physique"]
[41,null,"Constituants élémentaires et physique théorique"]
[42,null,"Plasmas chauds"]
[43,null,"Milieux denses, matériaux et composants"]
[44,null,"Milieux dilués et optique fondamentale "]
[45,null,"Physique nucléaire"]
[50,"Sciences agronomiques et écologiques"]
[51,null,"Biologie de l'environnement, des populations, écologie "]
[52,null,"Biologie des organismes ; Biotechnologies animales, végétales et microbienne "]
[53,null,"Biotechnologies agroalimentaires, sciences de l'aliment "]
[54,null,"Sciences agronomiques "]
[60,"Sciences de la terre et de l'univers, espace"]
[61,null,"Astronomie, astrophysique "]
[62,null,"Terre solide et enveloppes superficielles "]
[63,null,"Terre, enveloppes fluides "]
[64,null,"Terre solide et couches profondes"]
[70,"Sciences et technologies de l'information et de la communication"]
[71,null,"Automatique, productique "]
[72,null,"Traitement du signal et des images"]
[73,null,"Electronique, microélectronique, nanoélectronique et micro- ondes"]
[74,null,"Micro-nanosystèmes et capteurs"]
[75,null,"Systèmes optiques et photonique"]
[76,null,"Informatique et applications"]
[null,"Sciences humaines et humanités"]
[301,null,"Aménagement de l'espace, urbanisme"]
[302,null,"Arts : plastiques, spectacle, musique, esthétique, sciences et histoire de l'art"]
[303,null,"Cultures et langues régionales"]
[304,null,"Epistémologie, histoire des sciences et des techniques"]
[305,null,"Ethique et déontologie"]
[306,null,"Géographie physique, humaine, économique et régionale"]
[307,null,"Histoire et civilisations : histoire des mondes modernes, histoire du monde contemporain, de l'art"]
[308,null,"Histoire et civilisations : histoire et archéologie des mondes anciens et médiévaux, de l'art"]
[309,null,"Langue et littérature françaises"]
[310,null,"Langues et littératures anciennes"]
[311,null,"Langues et littératures anglaises et anglo-saxonnes"]
[312,null,"Langues et littératures arabes, chinoises, japonaises, hébraiques"]
[313,null,"Langues et littératures germaniques et scandinaves"]
[314,null,"Langues et littératures romanes : espagnol, italien, portugais, autres langues"]
[315,null,"Langues et littératures slaves"]
[316,null,"Littératures comparées"]
[317,null,"Philosophie"]
[318,null,"Préhistoire"]
[319,null,"Psychologie, psychologie clinique, psychologie sociale"]
[320,null,"Sciences de l'éducation"]
[321,null,"Sciences de l'information et de la communication"]
[322,null,"Sciences du langage : linguistique et phonétique générale"]
[323,null,"Sciences et techniques des activités physiques et sportives"]
[324,null,"Théologie"]
[80,"Sciences pour l'ingénieur"]
[81,null,"Génie des procédés "]
[82,null,"Plasmas froids "]
[83,null,"Electronique de puissance "]
[84,null,"Génie électrique"]
[85,null,"Acoustique "]
[86,null,"Bio-mécanique et bio-ingénierie"]
[87,null,"Energétique, thermique, combustion "]
[88,null,"Mécanique des milieux fluides"]
[89,null,"Génie civil "]
[810,null,"Génie mécanique, productique, transport"]
[811,null,"Mécanique des solides, des matériaux, des structures et des surfaces "]
[812,null,"Missiles, armes, sciences et techniques de défense"]
[90,"Sciences de la société"]
[90,null,"Anthropologie, ethnologie"]
[91,null,"Droit privé et sciences criminelles"]
[92,null,"Droit public"]
[93,null,"Histoire du droit et des institutions"]
[94,null,"Science de gestion"]
[95,null,"Science économique"]
[96,null,"Science politique"]
[97,null,"Sociologie, démographie"]

{"sheet":"Objectifs d'étude","index":4,"n_rows":222,"n_cols":7,"rows_kept":222,"cut":false,"hidden":true,"merged":[[3,0,3,1]]}
[null,"Cadre de la recherche\nObjectifs d'étude / Secteurs industriels"]
[]
[]
[]
[]
["A","Biologie, médecine, santé "]
[1,"Agents pathogènes humains, Toxines"]
[2,"Agents pathogènes humains, Bactéries"]
[3,"Agents pathogènes humains, Virus"]
[4,"Alimentaire"]
[5,"Base de données"]
[6,"Biomatériaux"]
[7,"Détection/Diagnostic"]
[8,"Epidémiologie"]
[9,"Modélisation"]
[10,"Procédé de fabrication"]
[11,"Produits chimiques toxiques et précurseurs chimiques toxiques"]
[12,"Surveillance (détection d'alerte - système de surveillance)"]
[13,"Thérapeutique et prévention"]
[]
["B","Chimie "]
[1,"Analyse, Détection"]
[2,"Contrôle, Sécurité des procédés"]
[3,"Dépollution"]
[4,"Détonique"]
[5,"Energie"]
[6,"Génie chimique"]
[7,"Nanotechnologies"]
[8,"Nouveaux matériaux"]
[9,"Produits chimiques toxiques et précurseurs chimiques toxiques"]
[10,"Propulsion"]
[11,"Recherche académique"]
[12,"Synthèse, Equipements de production"]
[13,"Toxicologie"]
[]
["C","Mathématiques et leurs interactions"]
[1,"Aéronautique"]
[2,"Energie"]
[3,"Environnement"]
[4,"Espace"]
[5,"Etude la matière, Matériaux, Propriétés"]
[6,"Génie civil"]
[7,"Génie des procédés"]
[8,"Génie électrique et électronique"]
[9,"Génie mécanique"]
[10,"Ingéniérie des systèmes"]
[11,"Instrumentation et mesures physiques"]
[12,"Métrologie et systèmes de référence"]
[13,"Nanotechnologies"]
[14,"Recherche académique"]
[15,"Sécurité, Sûreté ,Qualité"]
[16,"TIC et média"]
[17,"Transports"]
[]
["D","Physique "]
[1,"Aéronautique"]
[2,"Energie"]
[3,"Environnement"]
[4,"Espace"]
[5,"Etude la matière, Matériaux, Propriétés"]
[6,"Génie civil"]
[7,"Génie des procédés"]
[8,"Génie mécanique"]
[9,"Génies électrique et électronique"]
[10,"Ingéniérie des systèmes"]
[11,"Instrumentation et mesures physiques"]
[12,"Métrologie et systèmes de référence"]
[13,"Nanotechnologies"]
[14,"Recherche académique"]
[15,"Sécurité, Sûreté, Qualité"]
[16,"TIC et média"]
[17,"Transports"]
[]
["E","Sciences agronomiques et écologiques"]
[1,"Agents pathogènes animaux"]
[2,"Agents pathogènes des plantes"]
[3,"Alimentaire"]
[4,"Base de données"]
[5,"Biomatériaux"]
[6,"Détection/Diagnostic"]
[7,"Ecologie/Environnement"]
[8,"Epidémiologie"]
[9,"Modélisation"]
[10,"Procédé de fabrication"]
[11,"Production d'énergie "]
[12,"Produits chimiques toxiques et précurseurs chimiques toxiques"]
[13,"Surveillance (détection d'alerte - système de surveillance)"]
[14,"Thérapeutique et prévention"]
[]
["F","Sciences de la terre et de l'univers, espace"]
[1,"Aéronautique"]
[2,"Energie"]
[3,"Environnement"]
[4,"Espace"]
[5,"Etude la matière, Matériaux, Propriétés"]
[6,"Génie civil"]
[7,"Génie des procédés"]
[8,"Génie mécanique"]
[9,"Génies électrique et électronique"]
[10,"Ingéniérie des systèmes"]
[11,"Instrumentation et mesures physiques"]
[12,"Métrologie et systèmes de référence"]
[13,"Nanotechnologies"]
[14,"Recherche académique"]
[15,"Sécurité Sûreté Qualité"]
[16,"TIC et média"]
[17,"Transports"]
[]
["G","Sciences et technologies de l'information et de la communication (STIC)"]
[1,"Aéronautique"]
[2,"Energie"]
[3,"Environnement"]
[4,"Espace"]
[5,"Etude la matière, Matériaux, Propriétés"]
[6,"Génie civil"]
[7,"Génie des procédés"]
[8,"Génie électrique et électronique"]
[9,"Génie mécanique"]
[10,"Ingéniérie des systèmes"]
[11,"Instrumentation et mesures physiques"]
[12,"Métrologie et systèmes de référence"]
[13,"Nanotechnologies"]
[14,"Recherche académique"]
[15,"Réseaux"]
[16,"Sécurité, Sûreté ,Qualité"]
[17,"TIC et média"]
[18,"Transports"]
[]
["H","Sciences humaines et humanités"]
[1,"Aménagement "]
[2,"Analyse spatiale / Modélisation "]
[3,"Anthropologie sociale / Ethnologie "]
[4,"Architecture / urbanisme "]
[5,"Communication Homme-Machine "]
[6,"Défense et sécurité"]
[7,"Description, histoire et comparaison des langues "]
[8,"Géographie physique "]
[9,"Histoire des civilisations étrangères "]
[10,"Histoire politique "]
[11,"Histoire socio-culturelle "]
[12,"Ingénierie des langues "]
[13,"Méthodologie sociologique "]
[14,"Milieux naturels "]
[15,"Philosophie politique"]
[16,"Psychologie sociale "]
[17,"Sciences politiques "]
[18,"Sociologie "]
[19,"Sociologie des religions "]
[20,"Sociologie et communication politiques ",null,null,null,null,"A - Ministère de la défense"]
[21,"Sociologie urbaine ",null,null,null,null,"B - Ministère de l'écologie"]
[22,"Théorie et économie politiques ",null,null,null,null,"C - Ministère de l'économie"]
[23,"Traitement de l'information géographique ",null,null,null,null,"D - Ministère de la santé"]
[24,"Urbanisme",null,null,null,null,"E - Ministère de l'agriculture"]
[null,null,null,null,null,null,"F - Ministère de l'enseignement supérieur de la recherche et l'innovation"]
["I","Mécanique & Sciences pour l'ingénieur"]
[1,"Aéronautique et Espace"]
[2,"Energie"]
[3,"Environnement et DD"]
[4,"Génie civil "]
[5,"Industrie manufacturière"]
[6,"Ingéniérie des systèmes"]
[7,"Instrumentation et mesures"]
[8,"Métrologie et systèmes de référence"]
[9,"Nanotechnologies"]
[10,"Productique (méthodes et moyens de prod indus)"]
[11,"Recherche académique"]
[12,"TIC et média"]
[13,"Transports et engins"]
[]
["J","Sciences de la société"]
[1,"Droit pénal"]
[2,"Droit comparé"]
[3,"Economie"]
[4,"Urbanisme"]
[5,"Environnement"]
[null,"Les trajectoires sociales des militaires issus de l'émigration"]
[null,"La mafia russe"]
[null,"Etude sur les juges italiens et enquête sur la maffia italienne"]
[null,"Les questions de territorialité et de frontières"]
[null,"Enquêtes ethnographiques dans des commissariats"]
[null,"Les crimes de sang au Pakistan"]
[null,"L'intégrisme religieux"]
[null,"Les professionnels du chiffre face au blanchiment"]
[null,"Libertés fondamentales et lutte contre le terrorisme"]
[null,"Guerre de l'information et lutte antiterrorisme"]
[null,"Etudes diverses relatives à la cyberguerre, à la cybersurveillance"]
[null,"Veille stratégique face au risque des agressions numériques"]
[null,"Atlas de l'islam radical"]
[null,"La déontologie de la sécurité en droit français"]
[null,"Les instruments juridiques de lutte contre la criminalité transnationale"]
[null,"Etudes relatives à la cryptologie"]
[null,"Enquête dans les prisons israeliennes et palestiniennes sur les attentats suicides"]
[null,"Les menaces biologiques"]
[null,"Droit public et criminalité"]
[null,"Droit de la cybersurveillance"]
[null,"La sécurité de l'individu numérisé"]
[null,"Les mutations de la marine nationale"]
[null,"Les milieux militaires américains et leurs discours"]
[null,"Stratégies communicatives de recrutement militaire"]
[null,"Les ingénieurs militaires de la DGA"]
[null,"L'interdiction de la perfidie en droit des conflits armés"]
[null,"Le parachutiste français face aux guerres de décolonisation"]
[null,"Droit et terrorisme"]
[null,"Diverses études de polémologie"]
[null,"Le concept de risque"]
[null,"La gestion des risques"]
[null,"Défense économique"]
[null,"Les objectifs d'une politique d'intelligence économique"]
[null,"Le secret des affaires"]
[null,"Etudes sur la prolifération, sur le commerce des armes, la dissuasion nucléaire, la politique française de défense (idem pour des pays étrangers)"]
[null,"L'impact du renseignement sur la gestion des risques"]
[null,"Le droit international face à la prolifération"]
[null,"L'eau comme enjeu des relations israelo-arabes"]
[null,"Enquête internationale sur l'islam modéré"]
[null,"Les logiques et les enjeux des interventions armées au moyen orient"]
[null,"Le printemps arabe"]
[null,"Etudes sur le concept de maintien de la paix"]
[null,"La vision chinoise de la sécurité internationale"]
[null,"Mouvements migratoires"]
[null,"Les musulmans en France"]
[null,"Démographies et mouvements migratoires"]
[null,"Minorités sunnites en Iran"]

{"sheet":"Listes (2)","index":5,"n_rows":41,"n_cols":17,"rows_kept":41,"cut":false,"hidden":true,"merged":[]}
["domaine","Biologie_médecine_et_santé","Chimie","Mathématiques_et_leurs_interactions","Physique","Sciences_agronomiques_et_écologiques","Sciences_de_la_terre_et_de_l_univers_espace","Sciences_et_technologies_de_l_information_et_de_la_communication","Sciences_pour_l_ingénieur","BAP_A_Sciences_du_vivant","BAP_B_Sciences_chimiques_Sciences_des_Matériaux","BAP_C_Sciences_de_l’ingénieur_et_instrumentation_scientifique","BAP_D_Sciences_Humaines_et_sociales","BAP_E_Informatique_Statistique_et_Calcul_Scientifique","BAP_F_Information_Documentation_Culture_Communication_Edition_TICE","BAP_G_Patrimoine_logistique_prévention_et_restauration","BAP_J_Gestion_et_pilotage"]
[]
["Biologie_médecine_et_santé ","Aspects moléculaires et cellulaires de la biologie","Chimie des matériaux ","Mathématiques et leurs interactions ","Constituants élémentaires et physique théorique","Biologie de l'environnement, des populations, écologie ","Astronomie, astrophysique ","Automatique, productique ","Génie des procédés ","Administratif et technique","Administratif et technique","Administratif et technique","Administratif et technique","Administratif et technique","Administratif et technique","Administratif et technique","Administratif et technique"]
["Chimie","Biomolécules, pharmacologie, thérapeutique ","Chimie organique, minérale, industrielle ",null,"Plasmas chauds","Biologie des organismes ; Biotechnologies animales, végétales et microbienne ","Terre solide et enveloppes superficielles ","Traitement du signal et des images","Plasmas froids "]
["Mathématiques_et_leurs_interactions","Physiologie, Biologie des organismes, populations, interactions ","Chimie théorique, physique, analytique ",null,"Milieux denses, matériaux et composants","Biotechnologies agroalimentaires, sciences de l'aliment ","Terre, enveloppes fluides ","Electronique, microélectronique, nanoélectronique et micro- ondes","Electronique de puissance "]
["Physique","Recherche clinique, innovation technologique, santé publique ","Génie des matériaux ",null,"Milieux dilués et optique fondamentale ","Sciences agronomiques ","Terre solide et couches profondes","Micro-nanosystèmes et capteurs","Génie électrique"]
["Sciences_agronomiques_et_écologiques","Sciences de la vie et de la santé",null,null,"Physique nucléaire",null,null,"Systèmes optiques et photonique","Acoustique "]
["Sciences_de_la_terre_et_de_l_univers_espace",null,null,null,null,null,null,"Informatique et applications","Bio-mécanique et bio-ingénierie"]
["Sciences_et_technologies_de_l_information_et_de_la_communication",null,null,null,null,null,null,null,"Energétique, thermique, combustion "]
["Sciences_pour_l_ingénieur",null,null,null,null,null,null,null,"Mécanique des milieux fluides"]
["BAP_A_Sciences_du_vivant",null,null,null,null,null,null,"Sciences_humaines_et_humanités","Génie civil "]
["BAP_B_Sciences_chimiques_Sciences_des_Matériaux"]
["BAP_C_Sciences_de_l’ingénieur_et_instrumentation_scientifique"]
["BAP_D_Sciences_Humaines_et_sociales"]
["BAP_E_Informatique_Statistique_et_Calcul_Scientifique",null,null,null,null,null,null,null,"Génie mécanique, productique, transport"]
["BAP_F_Information_Documentation_Culture_Communication_Edition_TICE",null,null,null,null,null,null,"Aménagement de l'espace, urbanisme","Mécanique des solides, des matériaux, des structures et des surfaces "]
["BAP_G_Patrimoine_logistique_prévention_et_restauration",null,null,null,null,null,null,"Arts : plastiques, spectacle, musique, esthétique, sciences et histoire de l'art","Missiles, armes, sciences et techniques de défense"]
["BAP_J_Gestion_et_pilotage",null,null,null,"Sciences_de_la_société",null,null,"Cultures et langues régionales"]
[null,null,null,null,null,null,null,"Epistémologie, histoire des sciences et des techniques"]
[null,null,null,null,"Anthropologie, ethnologie",null,null,"Ethique et déontologie"]
[null,"Domaine_etude",null,null,"Droit privé et sciences criminelles",null,null,"Géographie physique, humaine, économique et régionale"]
["Biologie_médecine_et_santé","AA","AO",null,"Droit public",null,null,"Histoire et civilisations : histoire des mondes modernes, histoire du monde contemporain, de l'art"]
["Chimie","BA","BO",null,"Histoire du droit et des institutions",null,null,"Histoire et civilisations : histoire et archéologie des mondes anciens et médiévaux, de l'art"]
["Mathématiques_et_leurs_interactions","CA","CO",null,"Science de gestion",null,null,"Langue et littérature françaises"]
["Physique","DA","DO",null,"Science économique",null,null,"Langues et littératures anciennes"]
["Sciences_agronomiques_et_écologiques","EA","EO",null,"Science politique",null,null,"Langues et littératures anglaises et anglo-saxonnes"]
["Sciences_de_la_terre_et_de_l_univers_espace","FA","FO",null,"Sociologie, démographie",null,null,"Langues et littératures arabes, chinoises, japonaises, hébraiques"]
["Sciences_et_technologies_de_l_information_et_de_la_communication","GA","GO",null,null,null,null,"Langues et littératures germaniques et scandinaves"]
["Sciences_pour_l_ingénieur","IA","IO",null,null,null,null,"Langues et littératures romanes : espagnol, italien, portugais, autres langues"]
[null,null,null,null,null,null,null,"Langues et littératures slaves"]
[null,null,null,null,null,null,null,"Littératures comparées"]
[null,null,null,null,null,null,null,"Philosophie"]
[null,null,null,null,null,null,null,"Préhistoire"]
["Biologie médecine et santé (biology medecine and health)",null,null,null,null,null,null,"Psychologie, psychologie clinique, psychologie sociale"]
["Chimie (chemistry)",null,null,null,null,null,null,"Sciences de l'éducation"]
["Mathématiques et leurs interactions (mathematics)",null,null,null,null,null,null,"Sciences de l'information et de la communication"]
["Physique (physics)",null,null,null,null,null,null,"Sciences du langage : linguistique et phonétique générale"]
["Sciences agronomiques et écologiques (agronomic and ecological sciences)",null,null,null,null,null,null,"Sciences et techniques des activités physiques et sportives"]
["Sciences de la terre et de l'univers (universe and earth sciences)",null,null,null,null,null,null,"Théologie"]
["Sciences et technologies de l'information et de la communication (communication and information sciences and technologies)"]
["Sciences pour l'ingénieur (engineering sciences)"]

{"sheet":"Import MENESR","index":6,"n_rows":2,"n_cols":37,"rows_kept":2,"cut":false,"hidden":true,"merged":[]}
["Etablissement","Nombre","A00","A10","A11","A02","A03","A06","A8","A9","A07","A14","C05","C04","B07B","B07C","C01","-","C08","C08A","C10","-","Semaine","-","-","-","-","-","-","-","-","-","-","-","-","-","-"]
[null,null,{"$f":"#REF!","v":{"$error":"#REF!"}},{"$f":"'Formulaire demande d''accès ZRR '!C9","v":0},{"$f":"'Formulaire demande d''accès ZRR '!G11","v":0},{"$f":"'Formulaire demande d''accès ZRR '!C6:C6","v":0},{"$f":"'Formulaire demande d''accès ZRR '!#REF!","v":{"$error":"#REF!"}},{"$f":"'Formulaire demande d''accès ZRR '!G9","v":"00:00:00"},{"$f":"'Formulaire demande d''accès ZRR '!H9","v":"A2D Code postal et ville de naissance\n     (zip code and birthplace)*"},{"$f":"'Formulaire demande d''accès ZRR '!D11","v":"A2F Nationalité (pays) (nationality) *"},{"$f":"'Formulaire demande d''accès ZRR '!#REF!","v":{"$error":"#REF!"}},{"$f":"'Formulaire demande d''accès ZRR '!#REF!","v":{"$error":"#REF!"}},{"$f":"'Formulaire demande d''accès ZRR '!#REF!","v":{"$error":"#REF!"}},{"$f":"'Formulaire demande d''accès ZRR '!#REF!","v":{"$error":"#REF!"}},{"$f":"'Formulaire demande d''accès ZRR '!#REF!","v":{"$error":"#REF!"}},{"$f":"'Formulaire demande d''accès ZRR '!#REF!","v":{"$error":"#REF!"}},{"$f":"#REF!","v":{"$error":"#REF!"}},null,{"$f":"#REF!","v":{"$error":"#REF!"}},{"$f":"#REF!","v":{"$error":"#REF!"}},{"$f":"'Formulaire demande d''accès ZRR '!#REF!","v":{"$error":"#REF!"}},null,{"$f":"WEEKNUM(V2)","v":0},null,null,null,{"$f":"AB2-V2","v":0},null,{"$f":"WEEKNUM(AB2)","v":0},null,null,null,null,{"$f":"#REF!","v":{"$error":"#REF!"}}]

{"sheet":"Listes","index":7,"n_rows":176,"n_cols":16,"rows_kept":176,"cut":false,"hidden":true,"merged":[]}
["ON","type","diplôme","recrutement","prestation","formation","financement","origine","source","virtuel","virtuel2","convention","pays","financement",null,"pays_autre"]
["oui","recrutement en CDI","Master 1",null,"conseil","relève d'une spécialité sensible","bourse","France","Gouvernement","télétravail","accès uniquement virtuel","accord cadre","Afghanistan","Propre",null,"_Sans Objet_"]
["non","recrutement en CDD","Master 2",null,"audit","ne relève pas d'une spécialité sensible","fonds propres ","étranger","Défense","infogérance","accès physique + virtuel ","coopération","Afrique du Sud","Privé (société)",null,"Afghanistan"]
[null,"stage","Doctorat",null,"infogérance",null,"salaire",null,"industrie","autre",null,"partenariat","Albanie","Public (universitaire)",null,"Afrique du Sud"]
[null,"prestation externe de service","Post-Doc",null,"autre",null,"subvention",null,null,null,null,"autre","Algérie","Public-Privé",null,"Albanie"]
[null,"collaboration professionnelle","Chercheur invité",null,null,null,"autre",null,null,null,null,null,"Allemagne","Autre (préciser champ B07A)",null,"Algérie"]
[null,"autre","Poste Enseignant-chercheur",null,null,null,null,null,null,null,null,null,"Andorre",null,null,"Allemagne"]
[null,null,"Poste ATER-MC-Professeur",null,null,null,null,null,null,null,null,null,"Angola",null,null,"Andorre"]
["pièce","sexe","Poste administratif","situation",null,null,"recherche","ministère","avis",null,null,null,"Arabie saoudite",null,null,"Angola"]
["carte d'identité","Masculin","Autre","étudiant",null,null,"fondamentale","Agriculture","Favorable",null,null,null,"Argentine",null,null,"Arabie saoudite"]
["passeport","Féminin",null,"enseignant",null,null,"appliquée","Santé","Défavorable",null,null,null,"Arménie",null,null,"Argentine"]
["autre",null,null,"chercheur",null,null,null,"Energie","Réserves",null,null,null,"Australie",null,null,"Arménie"]
[null,null,null,"salarié",null,null,null,"Industrie","Proposition alternative",null,null,null,"Autriche",null,null,"Australie"]
[null,null,null,"profession libérale",null,null,null,"Recherche",null,null,null,null,"Azerbaïdjan",null,null,"Autriche"]
[null,null,null,"retraité",null,null,null,"Défense",null,null,null,null,"Bahamas",null,null,"Azerbaïdjan"]
[null,null,null,"autre",null,null,null,null,null,null,null,null,"Bahreïn",null,null,"Bahamas"]
[null,null,null,null,null,null,null,null,null,null,null,null,"Bangladesh",null,null,"Bahreïn"]
["Appellation",null,null,null,null,null,null,null,null,null,null,null,"Barbade",null,null,"Bangladesh"]
["Monsieur",null,null,null,null,null,null,null,null,null,null,null,"Bélarus",null,null,"Barbade"]
["Madame",null,null,null,null,null,null,null,null,null,null,null,"Belgique",null,null,"Bélarus"]
["Mademoiselle",null,null,null,null,null,null,null,null,null,null,null,"Belize",null,null,"Belgique"]
["Docteur",null,null,null,null,null,null,null,null,null,null,null,"Bénin",null,null,"Belize"]
[null,null,null,null,null,null,null,null,null,null,null,null,"Bolivie",null,null,"Bénin"]
[null,null,null,null,null,null,null,null,null,null,null,null,"Bosnie-Herzégovine",null,null,"Bolivie"]
[null,null,null,null,null,null,null,null,null,null,null,null,"Botswana",null,null,"Bosnie-Herzégovine"]
[null,null,null,null,null,null,null,null,null,null,null,null,"Brésil",null,null,"Botswana"]
[null,null,null,null,null,null,null,null,null,null,null,null,"Bulgarie",null,null,"Brésil"]
[null,null,null,null,null,null,null,null,null,null,null,null,"Burkina Faso",null,null,"Bulgarie"]
[null,null,null,null,null,null,null,null,null,null,null,null,"Burundi",null,null,"Burkina Faso"]
[null,null,null,null,null,null,null,null,null,null,null,null,"Cambodge",null,null,"Burundi"]
[null,null,null,null,null,null,null,null,null,null,null,null,"Cameroun",null,null,"Cambodge"]
[null,null,null,null,null,null,null,null,null,null,null,null,"Canada",null,null,"Cameroun"]
[null,null,null,null,null,null,null,null,null,null,null,null,"Cap-Vert",null,null,"Canada"]
[null,null,null,null,null,null,null,null,null,null,null,null,"Chili",null,null,"Cap-Vert"]
[null,null,null,null,null,null,null,null,null,null,null,null,"Chine",null,null,"Chili"]
[null,null,null,null,null,null,null,null,null,null,null,null,"Chypre",null,null,"Chine"]
[null,null,null,null,null,null,null,null,null,null,null,null,"Colombie",null,null,"Chypre"]
[null,null,null,null,null,null,null,null,null,null,null,null,"Comores",null,null,"Colombie"]
[null,null,null,null,null,null,null,null,null,null,null,null,"Corée du Nord",null,null,"Comores"]
[null,null,null,null,null,null,null,null,null,null,null,null,"Corée du Sud",null,null,"Corée du Nord"]
[null,null,null,null,null,null,null,null,null,null,null,null,"Congo",null,null,"Corée du Sud"]
[null,null,null,null,null,null,null,null,null,null,null,null,"Costa Rica",null,null,"Congo"]
[null,null,null,null,null,null,null,null,null,null,null,null,"Côte d'Ivoire",null,null,"Costa Rica"]
[null,null,null,null,null,null,null,null,null,null,null,null,"Croatie",null,null,"Côte d'Ivoire"]
[null,null,null,null,null,null,null,null,null,null,null,null,"Cuba",null,null,"Croatie"]
[null,null,null,null,null,null,null,null,null,null,null,null,"Danemark",null,null,"Cuba"]
[null,null,null,null,null,null,null,null,null,null,null,null,"Djibouti",null,null,"Danemark"]
[null,null,null,null,null,null,null,null,null,null,null,null,"Dominique",null,null,"Djibouti"]
[null,null,null,null,null,null,null,null,null,null,null,null,"Égypte",null,null,"Dominique"]
[null,null,null,null,null,null,null,null,null,null,null,null,"El Salvador",null,null,"Égypte"]
[null,null,null,null,null,null,null,null,null,null,null,null,"Émirats arabes unis",null,null,"El Salvador"]
[null,null,null,null,null,null,null,null,null,null,null,null,"Équateur",null,null,"Émirats arabes unis"]
[null,null,null,null,null,null,null,null,null,null,null,null,"Érythrée",null,null,"Équateur"]
[null,null,null,null,null,null,null,null,null,null,null,null,"Espagne",null,null,"Érythrée"]
[null,null,null,null,null,null,null,null,null,null,null,null,"Estonie",null,null,"Espagne"]
[null,null,null,null,null,null,null,null,null,null,null,null,"États-Unis d'Amérique",null,null,"Estonie"]
[null,null,null,null,null,null,null,null,null,null,null,null,"Éthiopie",null,null,"États-Unis d'Amérique"]
[null,null,null,null,null,null,null,null,null,null,null,null,"Fidji",null,null,"Éthiopie"]
[null,null,null,null,null,null,null,null,null,null,null,null,"Finlande",null,null,"Fidji"]
[null,null,null,null,null,null,null,null,null,null,null,null,"France",null,null,"Finlande"]
[null,null,null,null,null,null,null,null,null,null,null,null,"Gabon",null,null,"France"]
[null,null,null,null,null,null,null,null,null,null,null,null,"Gambie",null,null,"Gabon"]
[null,null,null,null,null,null,null,null,null,null,null,null,"Géorgie",null,null,"Gambie"]
[null,null,null,null,null,null,null,null,null,null,null,null,"Ghana",null,null,"Géorgie"]
[null,null,null,null,null,null,null,null,null,null,null,null,"Grèce",null,null,"Ghana"]
[null,null,null,null,null,null,null,null,null,null,null,null,"Grenade",null,null,"Grèce"]
[null,null,null,null,null,null,null,null,null,null,null,null,"Guatemala",null,null,"Grenade"]
[null,null,null,null,null,null,null,null,null,null,null,null,"Guinée",null,null,"Guatemala"]
[null,null,null,null,null,null,null,null,null,null,null,null,"Guinée Bissau",null,null,"Guinée"]
[null,null,null,null,null,null,null,null,null,null,null,null,"Guinée équatoriale",null,null,"Guinée Bissau"]
[null,null,null,null,null,null,null,null,null,null,null,null,"Guyana",null,null,"Guinée équatoriale"]
[null,null,null,null,null,null,null,null,null,null,null,null,"Haïti",null,null,"Guyana"]
[null,null,null,null,null,null,null,null,null,null,null,null,"Honduras",null,null,"Haïti"]
[null,null,null,null,null,null,null,null,null,null,null,null,"Hongrie",null,null,"Honduras"]
[null,null,null,null,null,null,null,null,null,null,null,null,"Inde",null,null,"Hongrie"]
[null,null,null,null,null,null,null,null,null,null,null,null,"Indonésie",null,null,"Inde"]
[null,null,null,null,null,null,null,null,null,null,null,null,"Iran",null,null,"Indonésie"]
[null,null,null,null,null,null,null,null,null,null,null,null,"Iraq",null,null,"Iran"]
[null,null,null,null,null,null,null,null,null,null,null,null,"Irlande",null,null,"Iraq"]
[null,null,null,null,null,null,null,null,null,null,null,null,"Islande",null,null,"Irlande"]
[null,null,null,null,null,null,null,null,null,null,null,null,"Israël",null,null,"Islande"]
[null,null,null,null,null,null,null,null,null,null,null,null,"Italie",null,null,"Israël"]
[null,null,null,null,null,null,null,null,null,null,null,null,"Jamaïque",null,null,"Italie"]
[null,null,null,null,null,null,null,null,null,null,null,null,"Japon",null,null,"Jamaïque"]
[null,null,null,null,null,null,null,null,null,null,null,null,"Jordanie",null,null,"Japon"]
[null,null,null,null,null,null,null,null,null,null,null,null,"Kazakhstan",null,null,"Jordanie"]
[null,null,null,null,null,null,null,null,null,null,null,null,"Kenya",null,null,"Kazakhstan"]
[null,null,null,null,null,null,null,null,null,null,null,null,"Kirghizistan",null,null,"Kenya"]
[null,null,null,null,null,null,null,null,null,null,null,null,"Kiribati",null,null,"Kirghizistan"]
[null,null,null,null,null,null,null,null,null,null,null,null,"Koweït",null,null,"Kiribati"]
[null,null,null,null,null,null,null,null,null,null,null,null,"Lesotho",null,null,"Koweït"]
[null,null,null,null,null,null,null,null,null,null,null,null,"Lettonie",null,null,"Lesotho"]
[null,null,null,null,null,null,null,null,null,null,null,null,"Liban",null,null,"Lettonie"]
[null,null,null,null,null,null,null,null,null,null,null,null,"Libye",null,null,"Liban"]
[null,null,null,null,null,null,null,null,null,null,null,null,"Libéria",null,null,"Libye"]
[null,null,null,null,null,null,null,null,null,null,null,null,"Liechtenstein",null,null,"Libéria"]
[null,null,null,null,null,null,null,null,null,null,null,null,"Lituanie",null,null,"Liechtenstein"]
[null,null,null,null,null,null,null,null,null,null,null,null,"Luxembourg",null,null,"Lituanie"]
[null,null,null,null,null,null,null,null,null,null,null,null,"Macédoine (ERYM)",null,null,"Luxembourg"]
[null,null,null,null,null,null,null,null,null,null,null,null,"Madagascar",null,null,"Macédoine (ERYM)"]
[null,null,null,null,null,null,null,null,null,null,null,null,"Malaisie",null,null,"Madagascar"]
[null,null,null,null,null,null,null,null,null,null,null,null,"Malawi",null,null,"Malaisie"]
[null,null,null,null,null,null,null,null,null,null,null,null,"Maldives",null,null,"Malawi"]
[null,null,null,null,null,null,null,null,null,null,null,null,"Mali",null,null,"Maldives"]
[null,null,null,null,null,null,null,null,null,null,null,null,"Malte",null,null,"Mali"]
[null,null,null,null,null,null,null,null,null,null,null,null,"Maroc",null,null,"Malte"]
[null,null,null,null,null,null,null,null,null,null,null,null,"Maurice",null,null,"Maroc"]
[null,null,null,null,null,null,null,null,null,null,null,null,"Mauritanie",null,null,"Maurice"]
[null,null,null,null,null,null,null,null,null,null,null,null,"Mexique",null,null,"Mauritanie"]
[null,null,null,null,null,null,null,null,null,null,null,null,"Moldavie",null,null,"Mexique"]
[null,null,null,null,null,null,null,null,null,null,null,null,"Monaco",null,null,"Moldavie"]
[null,null,null,null,null,null,null,null,null,null,null,null,"Mongolie",null,null,"Monaco"]
[null,null,null,null,null,null,null,null,null,null,null,null,"Monténégro",null,null,"Mongolie"]
[null,null,null,null,null,null,null,null,null,null,null,null,"Mozambique",null,null,"Monténégro"]
[null,null,null,null,null,null,null,null,null,null,null,null,"Myanmar",null,null,"Mozambique"]
[null,null,null,null,null,null,null,null,null,null,null,null,"Namibie",null,null,"Myanmar"]
[null,null,null,null,null,null,null,null,null,null,null,null,"Népal",null,null,"Namibie"]
[null,null,null,null,null,null,null,null,null,null,null,null,"Nicaragua",null,null,"Népal"]
[null,null,null,null,null,null,null,null,null,null,null,null,"Niger",null,null,"Nicaragua"]
[null,null,null,null,null,null,null,null,null,null,null,null,"Nigéria",null,null,"Niger"]
[null,null,null,null,null,null,null,null,null,null,null,null,"Norvège",null,null,"Nigéria"]
[null,null,null,null,null,null,null,null,null,null,null,null,"Nouvelle-Zélande",null,null,"Norvège"]
[null,null,null,null,null,null,null,null,null,null,null,null,"Oman",null,null,"Nouvelle-Zélande"]
[null,null,null,null,null,null,null,null,null,null,null,null,"Ouganda",null,null,"Oman"]
[null,null,null,null,null,null,null,null,null,null,null,null,"Ouzbékistan",null,null,"Ouganda"]
[null,null,null,null,null,null,null,null,null,null,null,null,"Pakistan",null,null,"Ouzbékistan"]
[null,null,null,null,null,null,null,null,null,null,null,null,"Panama",null,null,"Pakistan"]
[null,null,null,null,null,null,null,null,null,null,null,null,"Papouasie-Nouvelle-Guinée",null,null,"Panama"]
[null,null,null,null,null,null,null,null,null,null,null,null,"Paraguay",null,null,"Papouasie-Nouvelle-Guinée"]
[null,null,null,null,null,null,null,null,null,null,null,null,"Pays-Bas",null,null,"Paraguay"]
[null,null,null,null,null,null,null,null,null,null,null,null,"Pérou",null,null,"Pays-Bas"]
[null,null,null,null,null,null,null,null,null,null,null,null,"Philippines",null,null,"Pérou"]
[null,null,null,null,null,null,null,null,null,null,null,null,"Pologne",null,null,"Philippines"]
[null,null,null,null,null,null,null,null,null,null,null,null,"Portugal",null,null,"Pologne"]
[null,null,null,null,null,null,null,null,null,null,null,null,"Qatar",null,null,"Portugal"]
[null,null,null,null,null,null,null,null,null,null,null,null,"Syrie",null,null,"Qatar"]
[null,null,null,null,null,null,null,null,null,null,null,null,"République centrafricaine",null,null,"Syrie"]
[null,null,null,null,null,null,null,null,null,null,null,null,"République démocratique du Congo",null,null,"République centrafricaine"]
[null,null,null,null,null,null,null,null,null,null,null,null,"République dominicaine",null,null,"République démocratique du Congo"]
[null,null,null,null,null,null,null,null,null,null,null,null,"République tchèque",null,null,"République dominicaine"]
[null,null,null,null,null,null,null,null,null,null,null,null,"Russie",null,null,"République tchèque"]
[null,null,null,null,null,null,null,null,null,null,null,null,"Roumanie",null,null,"Russie"]
[null,null,null,null,null,null,null,null,null,null,null,null,"Royaume-Uni",null,null,"Roumanie"]
[null,null,null,null,null,null,null,null,null,null,null,null,"Rwanda",null,null,"Royaume-Uni"]
[null,null,null,null,null,null,null,null,null,null,null,null,"Sénégal",null,null,"Rwanda"]
[null,null,null,null,null,null,null,null,null,null,null,null,"Serbie",null,null,"Sénégal"]
[null,null,null,null,null,null,null,null,null,null,null,null,"Seychelles",null,null,"Serbie"]
[null,null,null,null,null,null,null,null,null,null,null,null,"Sierra Leone",null,null,"Seychelles"]
[null,null,null,null,null,null,null,null,null,null,null,null,"Singapour",null,null,"Sierra Leone"]
[null,null,null,null,null,null,null,null,null,null,null,null,"Slovaquie",null,null,"Singapour"]
[null,null,null,null,null,null,null,null,null,null,null,null,"Slovénie",null,null,"Slovaquie"]
[null,null,null,null,null,null,null,null,null,null,null,null,"Somalie",null,null,"Slovénie"]
[null,null,null,null,null,null,null,null,null,null,null,null,"Soudan",null,null,"Somalie"]
[null,null,null,null,null,null,null,null,null,null,null,null,"Sri Lanka",null,null,"Soudan"]
[null,null,null,null,null,null,null,null,null,null,null,null,"Suède",null,null,"Sri Lanka"]
[null,null,null,null,null,null,null,null,null,null,null,null,"Suisse",null,null,"Suède"]
[null,null,null,null,null,null,null,null,null,null,null,null,"Suriname",null,null,"Suisse"]
[null,null,null,null,null,null,null,null,null,null,null,null,"Swaziland",null,null,"Suriname"]
[null,null,null,null,null,null,null,null,null,null,null,null,"Tadjikistan",null,null,"Swaziland"]
[null,null,null,null,null,null,null,null,null,null,null,null,"Tanzanie",null,null,"Tadjikistan"]
[null,null,null,null,null,null,null,null,null,null,null,null,"Taïwan",null,null,"Tanzanie"]
[null,null,null,null,null,null,null,null,null,null,null,null,"Tchad",null,null,"Taïwan"]
[null,null,null,null,null,null,null,null,null,null,null,null,"Thaïlande",null,null,"Tchad"]
[null,null,null,null,null,null,null,null,null,null,null,null,"Togo",null,null,"Thaïlande"]
[null,null,null,null,null,null,null,null,null,null,null,null,"Trinité-et-Tobago",null,null,"Togo"]
[null,null,null,null,null,null,null,null,null,null,null,null,"Tunisie",null,null,"Trinité-et-Tobago"]
[null,null,null,null,null,null,null,null,null,null,null,null,"Turkménistan",null,null,"Tunisie"]
[null,null,null,null,null,null,null,null,null,null,null,null,"Turquie",null,null,"Turkménistan"]
[null,null,null,null,null,null,null,null,null,null,null,null,"Ukraine",null,null,"Turquie"]
[null,null,null,null,null,null,null,null,null,null,null,null,"Uruguay",null,null,"Ukraine"]
[null,null,null,null,null,null,null,null,null,null,null,null,"Venezuela ",null,null,"Uruguay"]
[null,null,null,null,null,null,null,null,null,null,null,null,"Viet Nam",null,null,"Venezuela "]
[null,null,null,null,null,null,null,null,null,null,null,null,"Yémen",null,null,"Viet Nam"]
[null,null,null,null,null,null,null,null,null,null,null,null,"Zambie",null,null,"Yémen"]
[null,null,null,null,null,null,null,null,null,null,null,null,"Zimbabwe",null,null,"Zambie"]
[null,null,null,null,null,null,null,null,null,null,null,null,null,null,null,"Zimbabwe"]

{"sheet":"Feuil2","index":8,"n_rows":8,"n_cols":1,"rows_kept":8,"cut":false,"hidden":true,"merged":[]}
["Biologie médecine et santé (biology medecine and health)"]
["Chimie (chemistry)"]
["Mathématiques et leurs interactions (mathematics)"]
["Physique (physics)"]
["Sciences agronomiques et écologiques (agronomic and ecological sciences)"]
["Sciences de la terre et de l'univers (universe and earth sciences)"]
["Sciences et technologies de l'information et de la communication (communication and information sciences and technologies)"]
["Sciences pour l'ingénieur (engineering sciences)"]